fUSD/lending_fUSD_20241114
["ID","MTS","AMOUNT","RATE_DAILY","PERIOD"]
[342205297,1731582411198,-200.0,0.00034902,30]
[342205298,1731582411248,-200.0,0.00034904,30]
[342205299,1731582411299,-243.98243949,0.00034906,30]
[342205300,1731582411350,-1523.14199863,0.00034906,30]
[342205301,1731582411399,-1299.41397271,0.00034906,30]
[342205302,1731582411451,-200.0,0.00034907,30]
[342205303,1731582411499,-744.79829615,0.00034909,30]
[342205304,1731582411550,-633.38388194,0.00034911,30]
[342205305,1731582411600,-1299.41397271,0.00034912,30]
[342205306,1731582411651,-744.79829615,0.00034913,30]
[342205307,1731582411700,-1523.14199863,0.00034913,30]
[342205308,1731582411750,-2829.79950759,0.00034914,30]
[342205309,1731582411800,-14932.1930998,0.00034914,30]
[342205310,1731582411853,-1057.89288792,0.00034914,30]
[342205311,1731582411902,-717.56198404,0.00034915,30]
[342205312,1731582411952,-1930.38383653,0.00034916,30]
[342205313,1731582412003,-1299.41397271,0.00034916,30]
[342205314,1731582412053,-744.79829615,0.00034916,30]
[342205315,1731582412101,-633.38388194,0.00034916,30]
[342205316,1731582412151,-200.0,0.00034918,30]
[342205317,1731582412199,-63298.11113099,0.00034919,30]
[342205318,1731582412248,-2829.79950759,0.00034919,30]
[342205319,1731582412295,-12601.59311682,0.0003492,30]
[342205320,1731582412344,-12601.59311682,0.0003492,30]
[342205321,1731582412395,-1396.055831,0.0003492,30]
[342205322,1731582412444,-200.0,0.00034922,30]
[342205323,1731582412493,-200.0,0.00034923,30]
[342205324,1731582412538,-717.56198404,0.00034926,30]
[342205325,1731582412586,-9856.23803385,0.00034928,30]
[342205326,1731582412634,-79752.30510732,0.00034928,30]
[342205327,1731582412684,-1523.14199863,0.00034928,30]
[342205328,1731582412734,-243.98243949,0.00034928,30]
[342205329,1731582412784,-64282.55918181,0.00034928,30]
[342205330,1731582412830,-2829.79950759,0.00034929,30]
[342205331,1731582412880,-200.0,0.0003493,30]
[342205332,1731582412926,-1523.14199863,0.00034931,30]
[342205333,1731582412977,-1523.14199863,0.00034931,30]
[342205334,1731582413025,-744.79829615,0.00034931,30]
[342205335,1731582413073,-744.79829615,0.00034932,30]
[342205336,1731582413119,-200.0,0.00034932,30]
[342205337,1731582413168,-717.56198404,0.00034933,30]
[342205338,1731582413215,-64282.55918181,0.00034933,30]
[342205339,1731582413265,-1000.0,0.00034933,30]
[342205340,1731582413314,-63298.11113099,0.00034933,30]
[342205341,1731582413362,-633.38388194,0.00034935,30]
[342205342,1731582413410,-744.79829615,0.00034936,30]
[342205343,1731582413460,-200.0,0.00034937,30]
[342205344,1731582413510,-63298.11113099,0.00034939,30]
[342205345,1731582413556,-14932.1930998,0.0003494,30]
[342205346,1731582413605,-717.56198404,0.0003494,30]
[342205347,1731582413652,-200.0,0.00034944,30]
[342205348,1731582413702,-1299.41397271,0.00034945,30]
[342205349,1731582413752,-5000.0,0.00034945,90]
[342205350,1731582413803,-5000.0,0.00034945,30]
[342205351,1731582413854,-5000.0,0.00034945,60]
[342205352,1731582413902,-5000.0,0.00034945,120]
[342205353,1731582413954,-200.0,0.00034946,30]
[342205354,1731582414004,-64282.55918181,0.00034947,30]
[342205355,1731582414055,-9856.23803385,0.00034947,30]
[342205356,1731582414106,-14932.1930998,0.00034949,30]
[342205357,1731582414156,-150.0,0.00034949,120]
[342205358,1731582414204,-428.81469367,0.00034949,30]
[342205359,1731582414254,-64282.55918181,0.0003495,30]
[342205360,1731582414303,-63298.11113099,0.0003495,30]
[342205361,1731582414350,-200.0,0.00034951,30]
[342205362,1731582414398,-1057.89288792,0.00034952,30]
[342205363,1731582414447,-243.98243949,0.00034952,30]
[342205364,1731582416905,-428.81469367,0.00034956,30]
[342205365,1731582416954,-200.0,0.00034956,30]
[342205366,1731582417003,-12601.59311682,0.00034957,30]
[342205367,1731582417052,-243.98243949,0.00034958,30]
[342205368,1731582417104,-9856.23803385,0.00034958,30]
[342205369,1731582417153,-2829.79950759,0.00034958,30]
[342205370,1731582417205,-9856.23803385,0.00034959,30]
[342205371,1731582417253,-1299.41397271,0.00034959,30]
[342205372,1731582417304,-800.0,0.00034959,120]
[342205373,1731582417353,-800.0,0.00034959,120]
[342205374,1731582417403,-6913.0,0.00034959,30]
[342205375,1731582417455,-800.0,0.00034959,120]
[342205376,1731582417507,-200.0,0.00034959,30]
[342205377,1731582417565,-386.07676724,0.0003496,30]
[342205378,1731582417619,-63298.11113099,0.0003496,30]
[342205379,1731582417672,-428.81469367,0.00034961,30]
[342205380,1731582417722,-243.98243949,0.00034961,30]
[342205381,1731582417773,-200.0,0.00034962,30]
[342205382,1731582417822,-79752.30510732,0.00034962,30]
[342205383,1731582417871,-428.81469367,0.00034963,30]
[342205384,1731582417922,-428.81469367,0.00034963,30]
[342205385,1731582418335,-717.56198404,0.00034964,30]
[342205386,1731582418404,-200.0,0.00034964,30]
[342205387,1731582418452,-200.0,0.00034966,30]
[342205388,1731582418495,-1396.055831,0.00034967,30]
[342205389,1731582418541,-1299.41397271,0.00034968,30]
[342205390,1731582418587,-64282.55918181,0.00034968,30]
[342205391,1731582418635,-14932.1930998,0.00034969,30]
[342205392,1731582418681,-1523.14199863,0.0003497,30]
[342205393,1731582418730,-2829.79950759,0.0003497,30]
[342205394,1731582418777,-1853.16848307,0.00034973,30]
[342205395,1731582418826,-1057.89288792,0.00034975,30]
[342205396,1731582418875,-14932.1930998,0.00034975,30]
[342205397,1731582418928,-9856.23803385,0.00034976,30]
[342205398,1731582418977,-717.56198404,0.00034977,30]
[342205399,1731582419025,-9856.23803385,0.00034977,30]
[342205400,1731582419071,-12601.59311682,0.00034979,30]
[342205401,1731582419120,-63801.7366029,0.00034979,30]
[342205402,1731582427489,-200.0,8.2e-05,2]
[342205403,1731582427511,-22498.75972035,9e-05,2]
[342205404,1731582427534,-250.0,9.042e-05,2]
[342205405,1731582427557,-7767.14606673,9.121e-05,2]
[342205406,1731582429142,-16132.85393327,9.121e-05,2]
[342205407,1731582429163,-1000.0,9.219e-05,2]
[342205408,1731582429183,-1852.42,9.257e-05,2]
[342205409,1731582429207,-1358.00520725,9.257e-05,2]
[342205410,1731582433830,-1773.49479275,9.257e-05,2]
[342205411,1731582433851,-250.0,9.561e-05,2]
[342205412,1731582433878,-300.0,9.6e-05,2]
[342205413,1731582433904,-538.88,9.758e-05,2]
[342205414,1731582433927,-179.66,9.767e-05,2]
[342205415,1731582433949,-3221.79597283,9.8e-05,2]
[342205416,1731582438096,-71549.19792717,9.8e-05,2]
[342205417,1731582438118,-349.29,9.8e-05,2]
[342205418,1731582438140,-17531.1208,9.899e-05,2]
[342205419,1731582438162,-931.6229,9.899e-05,2]
[342205420,1731582438184,-200.0,9.9e-05,2]
[342205421,1731582438209,-12294.7158,9.9e-05,2]
[342205422,1731582438231,-6225.7519016,9.9e-05,2]
[342205423,1731582439120,-9963.2480984,9.9e-05,2]
[342205424,1731582439143,-374.54679166,9.973e-05,2]
[342205425,1731582439169,-26567.04110186,0.0001,2]
[342205426,1731582449723,-669.1185,9.9e-05,2]
[342205427,1731582449754,-34081.8815,0.0001,2]
[342205428,1731582454351,1505.35063076,0.00027,60]
[342205433,1731582555609,800.0,0.00026986,120]
[342205434,1731582611933,800.0,0.00026986,120]
[342205442,1731582632029,-321.4476,9.799e-05,2]
[342205443,1731582632039,-300.0,9.999e-05,2]
[342205444,1731582632049,-671.6024,0.0001,2]
[342205474,1731582633184,-2192.11226354,0.0001,2]
[342205475,1731582633196,-11343.75,0.0001,2]
[342205476,1731582633225,-1616.11450001,0.0001,2]
[342205477,1731582633237,-9513.65115976,0.0001,2]
[342205478,1731582633248,-13675.5985686,0.0001,2]
[342205479,1731582633260,-57846.35372241,0.0001,2]
[342205490,1731582637889,-1580.49999999,0.0001,2]
[342205498,1731582637965,-256.987731,0.0001,2]
[342205501,1731582637977,-13197.50505224,0.0001,2]
[342205502,1731582638025,-42111.88022108,0.0001,2]
[342205503,1731582638036,-267.72780098,0.0001,2]
[342205504,1731582638047,-25756365.9288707,0.0001,2]
[342205505,1731582638059,-35287.50391003,0.0001,2]
[342205506,1731582638078,-2667.01559038,0.0001,2]
[342205507,1731582638089,-4856.41805329,0.0001,2]
[342205508,1731582638100,-4021.54973238,0.0001,2]
[342205509,1731582638112,-330.14,0.0001,2]
[342205510,1731582638140,-1082.90180495,0.0001,2]
[342205511,1731582638151,-850.79999,0.0001,2]
[342205512,1731582638217,-455.575,0.0001,2]
[342205513,1731582638301,-158073.20020692,0.0001,2]
[342205566,1731582639937,-867.74688,0.0001,2]
[342205567,1731582639949,-1581.3,0.0001,2]
[342205568,1731582640048,-4684.362345,0.0001,2]
[342205569,1731582640088,-73160.40771036,0.0001,2]
[342205570,1731582640100,-25986.86044499,0.0001,2]
[342205571,1731582640112,-690.85178323,0.0001,2]
[342205572,1731582640128,-7062.85928925,0.0001,2]
[342205573,1731582640144,-35252.96077557,0.0001,2]
[342205574,1731582640161,-900.0,0.0001,2]
[342205575,1731582640228,-974.55523679,0.0001,2]
[342205576,1731582640239,-854.25,0.0001,2]
[342205581,1731582642939,-2441.69835344,9.9e-05,2]
[342205582,1731582642951,-1460.3486444,9.9e-05,2]
[342205583,1731582642964,-2975.35000751,9.9e-05,2]
[342205592,1731582643917,-93122.60299465,9.9e-05,2]
[342205593,1731582643927,-1078425.58152208,0.0001,2]
[342205594,1731582643941,-2751.72254,0.0001,2]
[342205595,1731582644034,-6592.5,0.0001,2]
[342205596,1731582644045,-49528.91835962,0.0001,2]
[342205597,1731582644057,-9552.00000244,0.0001,2]
[342205598,1731582644068,-529.22865602,0.0001,2]
[342205599,1731582644079,-2582.51050806,0.0001,2]
[342205600,1731582644099,-393.82,0.0001,2]
[342205601,1731582644110,-556.17847194,0.0001,2]
[342205602,1731582644121,-10734.54385089,0.0001,2]
[342205603,1731582644135,-6406.10645054,0.0001,2]
[342205604,1731582644146,-1969.34901883,0.0001,2]
[342205605,1731582644158,-2396.35085853,0.0001,2]
[342205606,1731582644523,-2566.74389798,0.0001,2]
[342205607,1731582644535,-2134.43197938,0.0001,2]
[342205608,1731582644546,-5913.57040834,0.0001,2]
[342205620,1731582645812,-7880.89962162,0.0001,2]
[342205623,1731582645973,-12417.46227097,0.0001,2]
[342205624,1731582645984,-1146.15036622,0.0001,2]
[342205625,1731582645995,-32103.04701276,0.0001,2]
[342205626,1731582646007,-1586.35124,0.0001,2]
[342205627,1731582646088,-132871.86859471,0.0001,2]
[342205628,1731582646098,-17580.75593775,0.0001,2]
[342205629,1731582646108,-1000.0,0.0001,2]
[342205630,1731582646118,-1200.0,0.0001,3]
[342205631,1731582646130,-1000.0,0.0001,2]
[342205632,1731582646140,-3339.35593773,0.0001,2]
[342205633,1731582646149,-161.71585013,0.0001,2]
[342205634,1731582646159,-1186.09061115,0.0001,2]
[342205635,1731582646169,-15797.09445,0.0001,2]
[342205636,1731582646178,-1000.0,0.0001,2]
[342205637,1731582646187,-1000.0,0.0001,2]
[342205638,1731582646197,-1000.0,0.0001,2]
[342205639,1731582646207,-1000.0,0.0001,2]
[342205640,1731582646216,-12786.94505322,0.0001,2]
[342205641,1731582646225,-20678.26900103,0.0001,2]
[342205642,1731582646238,-4326.25,0.0001,2]
[342205643,1731582646250,-672.30903787,0.0001,2]
[342205644,1731582646261,-650.40067572,0.0001,2]
[342205645,1731582646336,-290.30629952,0.0001,2]
[342205646,1731582646348,-4334.64129282,0.0001,2]
[342205647,1731582646359,-3987.4128,0.0001,2]
[342205648,1731582646371,-22627.50000001,0.0001,2]
[342205649,1731582672690,800.0,0.00026986,120]
[342205653,1731582775920,161.077,0.00027,60]
[342205654,1731582787171,160.902,0.00027,60]
[342205655,1731582796244,160.947,0.00027,60]
[342205656,1731582808595,160.911,0.00027,60]
[342205657,1731582837948,160.889,0.00027,60]
[342205658,1731582912661,800.0,0.00026986,120]
[342205660,1731583071468,-346.67533577,0.0003494,120]
[342205661,1731583071519,-729.36,0.0003494,120]
[342205662,1731583071573,-500.0,0.0003494,120]
[342205663,1731583071625,-1190.42,0.0003494,120]
[342205664,1731583071678,-500.0,0.0003494,120]
[342205665,1731583071731,-2870.38861214,0.0003494,120]
[342205666,1731583071783,-547.67,0.0003494,120]
[342205667,1731583071833,-729.36,0.0003494,120]
[342205668,1731583071881,-588.27,0.0003494,120]
[342205669,1731583071931,-500.0,0.0003494,120]
[342205670,1731583071980,-1190.42,0.0003494,120]
[342205671,1731583072029,-500.0,0.0003494,120]
[342205672,1731583072083,-749.05,0.0003494,120]
[342205673,1731583072132,-1144.39,0.0003494,120]
[342205674,1731583072182,-547.67,0.0003494,120]
[342205675,1731583072234,-729.49702881,0.0003494,120]
[342205676,1731583072285,-588.27,0.0003494,120]
[342205677,1731583072335,-1190.42,0.0003494,120]
[342205678,1731583072386,-500.0,0.0003494,120]
[342205679,1731583072436,-500.0,0.0003494,120]
[342205680,1731583072485,-749.05,0.0003494,120]
[342205681,1731583072536,-547.67,0.0003494,120]
[342205682,1731583072586,-588.27,0.0003494,120]
[342205683,1731583072635,-224.70429424,0.0003494,120]
[342205684,1731583072685,-749.05,0.0003494,120]
[342205685,1731583072734,-547.67,0.0003494,120]
[342205686,1731583072782,-588.27,0.0003494,120]
[342205687,1731583072831,-500.0,0.0003494,120]
[342205688,1731583072879,-749.05,0.0003494,120]
[342205689,1731583072928,-1190.42,0.0003494,120]
[342205690,1731583072976,-547.67,0.0003494,120]
[342205691,1731583073028,-588.27,0.0003494,120]
[342205692,1731583073079,-500.0,0.0003494,120]
[342205693,1731583073128,-749.05,0.0003494,120]
[342205694,1731583073178,-1190.42,0.0003494,120]
[342205695,1731583073226,-547.67,0.0003494,120]
[342205696,1731583073272,-588.27,0.0003494,120]
[342205697,1731583073321,-500.0,0.0003494,120]
[342205698,1731583073370,-749.05,0.0003494,120]
[342205699,1731583073416,-1190.42,0.0003494,120]
[342205700,1731583073466,-547.67,0.0003494,120]
[342205701,1731583073518,-500.0,0.0003494,120]
[342205702,1731583073569,-749.05,0.0003494,120]
[342205703,1731583073620,-588.27,0.0003494,120]
[342205704,1731583073674,-547.67,0.0003494,120]
[342205705,1731583073724,-500.0,0.0003494,120]
[342205706,1731583073776,-749.05,0.0003494,120]
[342205707,1731583073827,-588.27,0.0003494,120]
[342205708,1731583073876,-547.67,0.0003494,120]
[342205709,1731583073925,-1190.42,0.0003494,120]
[342205710,1731583073975,-500.0,0.0003494,120]
[342205711,1731583074023,-749.05,0.0003494,120]
[342205712,1731583074077,-588.27,0.0003494,120]
[342205713,1731583074127,-500.0,0.0003494,120]
[342205714,1731583074175,-547.67,0.0003494,120]
[342205715,1731583074224,-1042.27,0.0003494,120]
[342205716,1731583074274,-500.0,0.0003494,120]
[342205717,1731583074324,-749.21313879,0.0003494,120]
[342205718,1731583074373,-1190.42,0.0003494,120]
[342205719,1731583074423,-588.27,0.0003494,120]
[342205720,1731583074471,-500.0,0.0003494,120]
[342205721,1731583074518,-547.67,0.0003494,120]
[342205722,1731583074568,-1042.27,0.0003494,120]
[342205723,1731583074617,-500.0,0.0003494,120]
[342205724,1731583074671,-1190.42,0.0003494,120]
[342205725,1731583074723,-588.27,0.0003494,120]
[342205726,1731583074774,-547.67,0.0003494,120]
[342205727,1731583074822,-1042.27,0.0003494,120]
[342205728,1731583074868,-500.0,0.0003494,120]
[342205729,1731583074915,-500.0,0.0003494,120]
[342205730,1731583074964,-1190.42,0.0003494,120]
[342205731,1731583075015,-588.27,0.0003494,120]
[342205732,1731583075066,-1042.27,0.0003494,120]
[342205733,1731583075116,-639.12881986,0.0003494,120]
[342205734,1731583075166,-547.67,0.0003494,120]
[342205735,1731583075220,-500.0,0.0003494,120]
[342205736,1731583075273,-1190.42,0.0003494,120]
[342205737,1731583075325,-588.27,0.0003494,120]
[342205738,1731583075377,-547.67,0.0003494,120]
[342205739,1731583075427,-1042.27,0.0003494,120]
[342205740,1731583075481,-500.0,0.0003494,120]
[342205741,1731583075535,-1190.42,0.0003494,120]
[342205742,1731583075588,-547.76951032,0.0003494,120]
[342205743,1731583075641,-588.27,0.0003494,120]
[342205744,1731583075695,-1042.27,0.0003494,120]
[342205745,1731583075746,-500.0,0.0003494,120]
[342205746,1731583075797,-2681.29,0.0003494,120]
[342205747,1731583076093,-1190.42,0.0003494,120]
[342205748,1731583076158,-588.27,0.0003494,120]
[342205749,1731583076206,-188.36670913,0.0003494,120]
[342205750,1731583076259,-1042.27,0.0003494,120]
[342205751,1731583076307,-1190.5819121,0.0003494,120]
[342205752,1731583076354,-2681.29,0.0003494,120]
[342205753,1731583076402,-588.27,0.0003494,120]
[342205754,1731583076451,-2681.29,0.0003494,120]
[342205755,1731583076502,-588.27,0.0003494,120]
[342205756,1731583076553,-1042.27,0.0003494,120]
[342205757,1731583076602,-2681.29,0.0003494,120]
[342205758,1731583076649,-588.27,0.0003494,120]
[342205759,1731583076700,-1042.27,0.0003494,120]
[342205760,1731583076751,-500.0,0.0003494,120]
[342205761,1731583076800,-2681.29,0.0003494,120]
[342205762,1731583076849,-1042.27,0.0003494,120]
[342205763,1731583076898,-500.0,0.0003494,120]
[342205764,1731583076950,-588.27,0.0003494,120]
[342205765,1731583077003,-2681.29,0.0003494,120]
[342205766,1731583077053,-1042.27,0.0003494,120]
[342205767,1731583077105,-588.27,0.0003494,120]
[342205768,1731583077156,-500.0,0.0003494,120]
[342205769,1731583077205,-2681.29,0.0003494,120]
[342205770,1731583077259,-1042.27,0.0003494,120]
[342205771,1731583077308,-759.37,0.0003494,120]
[342205772,1731583077356,-588.27,0.0003494,120]
[342205773,1731583077406,-500.0,0.0003494,120]
[342205774,1731583077454,-328.23218008,0.0003494,120]
[342205775,1731583077508,-588.27,0.0003494,120]
[342205776,1731583077558,-759.37,0.0003494,120]
[342205777,1731583077609,-500.0,0.0003494,120]
[342205778,1731583077662,-2681.29,0.0003494,120]
[342205779,1731583077717,-1042.27,0.0003494,120]
[342205780,1731583077775,-588.27,0.0003494,120]
[342205781,1731583077827,-759.37,0.0003494,120]
[342205782,1731583077878,-500.0,0.0003494,120]
[342205783,1731583077929,-500.0,0.0003494,120]
[342205784,1731583077981,-2681.29,0.0003494,120]
[342205785,1731583078037,-1042.27,0.0003494,120]
[342205786,1731583078092,-588.30520517,0.0003494,120]
[342205787,1731583078144,-500.0,0.0003494,120]
[342205788,1731583078196,-759.37,0.0003494,120]
[342205789,1731583078246,-2755.3,0.0003494,120]
[342205790,1731583078297,-500.0,0.0003494,120]
[342205791,1731583078349,-500.0,0.0003494,120]
[342205792,1731583078403,-2681.29,0.0003494,120]
[342205793,1731583078451,-759.37,0.0003494,120]
[342205794,1731583078503,-500.0,0.0003494,120]
[342205795,1731583078553,-2755.3,0.0003494,120]
[342205796,1731583078605,-500.0,0.0003494,120]
[342205797,1731583078656,-500.0,0.0003494,120]
[342205798,1731583078709,-1042.27,0.0003494,120]
[342205799,1731583078763,-2681.29,0.0003494,120]
[342205800,1731583078815,-500.0,0.0003494,120]
[342205801,1731583078865,-759.37,0.0003494,120]
[342205802,1731583078917,-2755.3,0.0003494,120]
[342205803,1731583078970,-500.0,0.0003494,120]
[342205804,1731583079022,-500.0,0.0003494,120]
[342205805,1731583079079,-1042.27,0.0003494,120]
[342205806,1731583079134,-2681.29,0.0003494,120]
[342205807,1731583079188,-500.0,0.0003494,120]
[342205808,1731583079242,-759.37,0.0003494,120]
[342205809,1731583079293,-500.0,0.0003494,120]
[342205810,1731583079343,-2755.3,0.0003494,120]
[342205811,1731583079391,-500.0,0.0003494,120]
[342205812,1731583079440,-500.0,0.0003494,120]
[342205813,1731583079492,-1042.27,0.0003494,120]
[342205814,1731583079544,-2681.29,0.0003494,120]
[342205815,1731583079594,-500.0,0.0003494,120]
[342205816,1731583079645,-759.37,0.0003494,120]
[342205817,1731583079703,-500.0,0.0003494,120]
[342205818,1731583079758,-500.0,0.0003494,120]
[342205819,1731583079814,-2755.3,0.0003494,120]
[342205820,1731583079867,-500.0,0.0003494,120]
[342205821,1731583079923,-2681.29,0.0003494,120]
[342205822,1731583079976,-1042.27,0.0003494,120]
[342205823,1731583080030,-1866.21,0.0003494,120]
[342205824,1731583080085,-500.0,0.0003494,30]
[342205825,1731583080142,-759.37,0.0003494,120]
[342205826,1731583080199,-500.0,0.0003494,120]
[342205827,1731583080265,-500.0,0.0003494,120]
[342205828,1731583080326,-2755.3,0.0003494,120]
[342205829,1731583080383,-238.62131959,0.0003494,120]
[342205830,1731583080440,-2681.29,0.0003494,120]
[342205831,1731583080496,-1042.27,0.0003494,120]
[342205832,1731583080552,-500.0,0.0003494,30]
[342205833,1731583080609,-1866.21,0.0003494,120]
[342205834,1731583080663,-759.37,0.0003494,120]
[342205835,1731583080733,-2755.3,0.0003494,120]
[342205836,1731583080793,-500.0,0.0003494,120]
[342205837,1731583080845,-500.0,0.0003494,120]
[342205838,1731583080899,-2681.29,0.0003494,120]
[342205839,1731583080951,-1866.21,0.0003494,120]
[342205840,1731583081006,-500.0,0.0003494,30]
[342205841,1731583081057,-759.37,0.0003494,120]
[342205842,1731583081111,-500.0,0.0003494,120]
[342205843,1731583081164,-2755.3,0.0003494,120]
[342205844,1731583081223,-289.38001234,0.0003494,120]
[342205845,1731583081280,-2681.29,0.0003494,120]
[342205846,1731583081332,-1866.21,0.0003494,120]
[342205847,1731583081384,-500.0,0.0003494,30]
[342205848,1731583081436,-1042.27,0.0003494,120]
[342205849,1731583081487,-759.37,0.0003494,120]
[342205850,1731583081536,-500.0,0.0003494,120]
[342205851,1731583082017,-2755.3,0.0003494,120]
[342205852,1731583082071,-2681.29,0.0003494,120]
[342205853,1731583082122,-1866.21,0.0003494,120]
[342205854,1731583082175,-500.0,0.0003494,30]
[342205855,1731583082235,-1042.27,0.0003494,120]
[342205856,1731583082290,-500.0,0.0003494,120]
[342205857,1731583082341,-759.37,0.0003494,120]
[342205858,1731583082394,-2681.29,0.0003494,120]
[342205859,1731583082448,-500.0,0.0003494,30]
[342205860,1731583082506,-1042.27,0.0003494,120]
[342205861,1731583082561,-1866.21,0.0003494,120]
[342205862,1731583082615,-500.0,0.0003494,120]
[342205863,1731583082667,-2755.3,0.0003494,120]
[342205864,1731583082724,-2681.29,0.0003494,120]
[342205865,1731583082779,-1042.27,0.0003494,120]
[342205866,1731583082832,-1866.21,0.0003494,120]
[342205867,1731583082887,-500.0,0.0003494,30]
[342205868,1731583082944,-500.0,0.0003494,120]
[342205869,1731583082999,-2755.3,0.0003494,120]
[342205870,1731583083056,-759.37,0.0003494,120]
[342205871,1731583083114,-2681.29,0.0003494,120]
[342205872,1731583083174,-1866.21,0.0003494,120]
[342205873,1731583083228,-500.0,0.0003494,30]
[342205874,1731583083288,-1042.39456233,0.0003494,120]
[342205875,1731583083346,-500.0,0.0003494,120]
[342205876,1731583083404,-1910.28,0.0003494,120]
[342205877,1731583083467,-2755.3,0.0003494,120]
[342205878,1731583083531,-2681.29,0.0003494,120]
[342205879,1731583083590,-1345.08,0.0003494,120]
[342205880,1731583083647,-759.37,0.0003494,120]
[342205881,1731583083705,-1866.21,0.0003494,120]
[342205882,1731583083766,-516.43188958,0.0003494,30]
[342205883,1731583083824,-2755.3,0.0003494,120]
[342205884,1731583083881,-2681.29,0.0003494,120]
[342205885,1731583083942,-1866.21,0.0003494,120]
[342205886,1731583083998,-500.0,0.0003494,120]
[342205887,1731583084059,-1910.28,0.0003494,120]
[342205888,1731583084124,-759.37,0.0003494,120]
[342205889,1731583084181,-2755.3,0.0003494,120]
[342205890,1731583084249,-500.0,0.0003494,120]
[342205891,1731583084310,-1866.21,0.0003494,120]
[342205892,1731583084367,-2681.30909781,0.0003494,120]
[342205893,1731583084425,-1345.08,0.0003494,120]
[342205894,1731583084482,-500.0,0.0003494,120]
[342205895,1731583084537,-759.37,0.0003494,120]
[342205896,1731583084593,-2755.3,0.0003494,120]
[342205897,1731583084645,-1910.28,0.0003494,120]
[342205898,1731583084699,-1866.21,0.0003494,120]
[342205899,1731583084756,-500.0,0.0003494,120]
[342205900,1731583084810,-1345.08,0.0003494,120]
[342205901,1731583084865,-759.37,0.0003494,120]
[342205902,1731583084918,-2755.3,0.0003494,120]
[342205903,1731583084975,-1910.28,0.0003494,120]
[342205904,1731583085028,-1866.21,0.0003494,120]
[342205905,1731583085081,-630.03091035,0.0003494,120]
[342205906,1731583085133,-500.0,0.0003494,120]
[342205907,1731583085184,-1345.08,0.0003494,120]
[342205908,1731583085237,-759.37,0.0003494,120]
[342205909,1731583085289,-2755.3,0.0003494,120]
[342205910,1731583085346,-1866.21,0.0003494,120]
[342205911,1731583085399,-1910.28,0.0003494,120]
[342205912,1731583085451,-517.51545532,0.0003494,120]
[342205913,1731583085510,-759.37,0.0003494,120]
[342205914,1731583085566,-1910.28,0.0003494,120]
[342205915,1731583085621,-759.37,0.0003494,120]
[342205916,1731583085678,-1345.08,0.0003494,120]
[342205917,1731583085733,-2755.3,0.0003494,120]
[342205918,1731583085785,-1910.28,0.0003494,120]
[342205919,1731583085838,-1866.21,0.0003494,120]
[342205920,1731583085894,-759.37,0.0003494,120]
[342205921,1731583085953,-1910.28,0.0003494,120]
[342205922,1731583086030,-2755.3,0.0003494,120]
[342205923,1731583086097,-1866.21,0.0003494,120]
[342205924,1731583086156,-1345.08,0.0003494,120]
[342205925,1731583086214,-500.0,0.0003494,120]
[342205926,1731583086281,-759.37,0.0003494,120]
[342205927,1731583086337,-2755.3,0.0003494,120]
[342205928,1731583086398,-1345.08,0.0003494,120]
[342205929,1731583086456,-1866.21,0.0003494,120]
[342205930,1731583086523,-2830.67,0.0003494,120]
[342205931,1731583086581,-759.45,0.0003494,120]
[342205932,1731583086637,-1540.15,0.0003494,120]
[342205933,1731583086693,-2755.3,0.0003494,120]
[342205934,1731583086750,-1345.08,0.0003494,120]
[342205935,1731583086804,-1910.28,0.0003494,120]
[342205936,1731583086857,-1866.21,0.0003494,120]